Cogmind - Beta 16 @@@ ROGUE MODE // 2025.10.23 @ 20:16:28 Player: ChromeKnight Result: Escaped! Performance ------------- Evolutions (9) 4500 Regions Visited (24) 4800 Robots Destroyed (156) 780 Value Destroyed (10920) 10920 Prototype IDs (16) 320 Alien Tech Used (0) 0 Bonus (11426) 11426 TOTAL SCORE: 32746 Bonus ------- High Alert Combat Kills 1771 Follower Combat Kills 2755 Entered Garrisons 1400 Used RIF Installer 2500 Win 3000 Cogmind --------- Core Integrity 654/1600 Matter 201/300 Energy 99/100 System Corruption 26% Temperature Cool (0) Movement Core (50) Location To Epsilon Eridani Parts ------- > --- POWER (1) -------- (None) > --- PROPULSION (5) --- (None) > --- UTILITY (16) ----- Experimental Optical Array Advanced Signal Interpreter Experimental Targeting Computer Advanced Target Analyzer Experimental Core Analyzer Improved Armor Integrity Analyzer Advanced Hacking Suite Relay Coupler [Grunt] (19) > --- WEAPON (3) ------- (None) > --- INVENTORY (5) ---- Advanced Datajack Peak State ------------ > --- POWER ------------ Improved Quantum Reactor > --- PROPULSION ------- Armored Medium Treads Biometal Heavy Treads Biometal Heavy Treads > --- UTILITY ---------- Cargo Storage Unit Experimental Optical Array Advanced Signal Interpreter Experimental Targeting Computer Experimental Core Analyzer Improved Armor Integrity Analyzer Advanced Kinecellerator Graphene Brace Hacking Suite Advanced Hacking Suite Relay Coupler [NC] Relay Coupler [Grunt] Relay Coupler [Sentry] > --- WEAPON ----------- Helical Railgun Helical Railgun Helical Railgun > --- INVENTORY -------- Quantum Reactor Improved Quantum Reactor Medium Treads Improved Heavy Treads Improved Heavy Treads Armored Heavy Treads Advanced Sensor Array System Shield Advanced System Shield Relay Coupler [NC] Relay Coupler [NC] Relay Coupler [Grunt] Relay Coupler [Sentry] Relay Coupler [Demolisher] Relay Coupler [Hunter] Relay Coupler [Hunter] Relay Coupler [Hunter] Advanced KE Penetrator Advanced KE Penetrator Hypervelocity Railgun Hypervelocity Railgun Micro-nuke Launcher Improved Remote Datajack Improved Remote Datajack Improved Remote Datajack Improved Remote Datajack Advanced Remote Datajack [Rating: 168] Favorites ----------- Power Improved Quantum Reactor Engine Light Ion Engine Power Core Micro Fission Core Reactor Improved Quantum Reactor Propulsion Improved Heavy Treads Treads Improved Heavy Treads Leg Flexi-carbon Leg Flight Unit VTOL Module Utility Relay Coupler [NC] Device Graphene Brace Storage Cargo Storage Unit Processor Enhanced Optical Array Hackware Relay Coupler [NC] Protection Improved Medium Armor Plating Weapon Helical Railgun Energy Gun Gatling Laser Energy Cannon Compact HERF Cannon Ballistic Gun Helical Railgun Launcher Grenade Launcher Special Weapon Improved Remote Datajack Impact Weapon Maul Slashing Weapon Katana Special Melee Weapon Datajack Build | -11 -10 -10 -9 -9 -9 -9 -9 -6 -6 -5 -4 -4 -4 -4 -3 -3 -3 -2 -2 -2 -2 -1 -1 -1 ------- Run | Yrd Mat Min Mat Sto Gar Rec Scr Fac Gar Fac Fac Gar Fac Ext Res Tes Gar Res Gar Res Gar Acc Gar Acc Slots Evolved 18 | . . . 2 . . . . 6 . 2 2 . . . 2 . . 2 . . . 2 . . Power . | . . . . . . . . . . . . . . . . . . . . . . . . . Propulsion 3 | . . . . . . . . 2 . . 1 . . . . . . . . . . . . . Utility 14 | . . . 2 . . . . 4 . 2 1 . . . 2 . . 1 . . . 2 . . Weapon 1 | . . . . . . . . . . . . . . . . . . 1 . . . . . . Parts Attached 220 | 6 6 2 3 5 16 8 6 8 40 5 1 21 3 7 4 12 13 4 7 3 9 5 8 18 Power 17 | 1 1 . . 1 2 . . . 4 . . 1 . 1 . 2 2 . . . . . . 2 Engine 6 | 1 1 . . 1 1 . . . 2 . . . . . . . . . . . . . . . Core 4 | . . . . . 1 . . . 2 . . 1 . . . . . . . . . . . . Reactor 7 | . . . . . . . . . . . . . . 1 . 2 2 . . . . . . 2 Propulsion 51 | 2 2 . . 1 6 . 4 3 12 . 1 5 . . . 1 2 . 1 2 1 . 2 6 Treads 26 | 2 2 . . 1 6 . 2 . . . . 3 . . . 1 1 . 1 2 1 . 2 2 Leg 14 | . . . . . . . 2 3 8 . . . . . . . 1 . . . . . . . Wheel . | . . . . . . . . . . . . . . . . . . . . . . . . . Hover . | . . . . . . . . . . . . . . . . . . . . . . . . . Flight 11 | . . . . . . . . . 4 . 1 2 . . . . . . . . . . . 4 Utility 102 | 1 1 . 2 2 5 5 2 4 13 4 . 12 2 6 2 6 7 3 5 1 7 3 3 6 Device 13 | . . . . . . . 1 . 6 1 . . . . . 2 1 1 . . . 1 . . Storage 6 | 1 1 . . . . . 1 . . . . 1 . . . 2 . . . . . . . . Processor 15 | . . . 1 . . . . 1 2 2 . . 1 . . . 2 1 3 . . . . 2 Hackware 44 | . . . . 1 1 1 . 3 2 . . 10 1 3 2 . 3 1 2 1 7 2 1 3 Protection 24 | . . . 1 1 4 4 . . 3 1 . 1 . 3 . 2 1 . . . . . 2 1 Artifact . | . . . . . . . . . . . . . . . . . . . . . . . . . Weapon 50 | 2 2 2 1 1 3 3 . 1 11 1 . 3 1 . 2 3 2 1 1 . 1 2 3 4 Energy Gun 6 | . . . . . . . . . 4 . . 1 . . . 1 . . . . . . . . Energy Cannon 1 | . . . . . . . . . . . . . . . . . . . . . . . . 1 Ballistic Gun 28 | 2 1 2 1 1 1 1 . . 7 1 . 1 1 . 1 . 2 1 1 . 1 2 1 . Ballistic Cannon . | . . . . . . . . . . . . . . . . . . . . . . . . . Launcher 5 | . 1 . . . . . . . . . . . . . 1 . . . . . . . 1 2 Special Weapon 5 | . . . . . . . . . . . . 1 . . . 2 . . . . . . 1 1 Impact Weapon 2 | . . . . . 1 1 . . . . . . . . . . . . . . . . . . Slashing Weapon 1 | . . . . . . . . 1 . . . . . . . . . . . . . . . . Piercing Weapon . | . . . . . . . . . . . . . . . . . . . . . . . . . Special Melee Weapon 2 | . . . . . 1 1 . . . . . . . . . . . . . . . . . . Unidentified Prototypes 12 | . . . . . . . . . . . . . 1 . . 2 5 . 2 . . . . 2 Parts Lost 96 | . 1 1 . . 6 4 . 2 31 1 1 2 1 . 8 2 6 . . 1 2 1 4 22 Power 10 | . 1 . . . 1 1 . . 2 . . 1 . . 1 1 1 . . . . . . 1 Propulsion 24 | . . . . . . . . . 13 . . . . . 1 . 1 . . . . . 2 7 Utility 37 | . . . . . 4 2 . . 8 . 1 1 1 . 6 1 3 . . . . . . 10 Weapon 25 | . . 1 . . 1 1 . 2 8 1 . . . . . . 1 . . 1 2 1 2 4 Highest Loss Streak 11 | . 1 1 . . 4 3 . 2 9 1 1 1 1 . 7 1 5 . . 1 1 1 3 11 To Critical Strikes 1 | . . . . . . . . . 1 . . . . . . . . . . . . . . . Average Backups 18 | . 8 13 15 13 14 14 14 9 8 4 4 12 24 26 24 19 22 26 26 26 25 25 23 19 Power . | . . . 1 1 . . . . . . . 1 2 1 1 . 1 2 2 2 2 1 1 . Propulsion 3 | . 1 2 4 4 5 5 4 1 . . . 3 8 5 5 4 3 4 3 4 3 3 2 2 Utility 6 | . 1 3 6 4 4 4 4 1 3 2 2 2 7 9 8 4 6 7 8 10 10 11 11 7 Weapon 5 | . 4 4 2 2 2 3 4 5 3 1 1 4 6 6 6 6 7 9 7 5 5 5 5 5 Tool/Special . | . . . . . . . . . . . . . . . . . . . . . . . . . Unused Backups 53 | . . 1 . . 3 . . . 5 . 1 12 4 6 . . . . 6 1 . 1 . 13 Power 5 | . . . . . . . . . . . . 1 . 1 . . . . 2 . . 1 . . Propulsion 13 | . . . . . 2 . . . 1 . . 4 2 2 . . . . 1 . . . . 1 Utility 11 | . . . . . . . . . 2 . . . . 1 . . . . 1 1 . . . 6 Weapon 20 | . . . . . 1 . . . 2 . 1 7 2 2 . . . . 2 . . . . 3 Tool/Special 4 | . . 1 . . . . . . . . . . . . . . . . . . . . . 3 Average Slot Usage (%) 84 | . 96 97 67 97 94 94 77 79 83 75 67 82 81 79 78 77 78 85 85 85 84 85 80 79 Engine 2 | . 12 14 11 11 3 8 . . 2 . . . . . . . . . . . . . . . Core 1 | . . . . . 5 . . . 2 5 5 4 5 . . . . . . . . . . . Reactor 1 | . . . . . . . . . . . . . . 4 3 3 3 4 4 4 4 4 4 3 Treads 14 | . 28 28 22 22 22 22 18 . . . . 7 15 14 13 14 13 13 12 12 13 12 10 9 Leg 1 | . . . . . . . 3 24 17 . . . . . . . . . . . . . . . Flight 1 | . . . . . . . . . 3 23 20 6 . . . . . . . . . . . 1 Device 3 | . . . . . . . . . 10 9 5 2 . . . 8 6 11 8 7 4 7 8 5 Storage 8 | . 25 28 11 11 11 11 11 6 5 . . 2 5 5 4 7 9 8 5 4 4 4 4 3 Processor 7 | . . . . 11 . . . 5 3 5 10 7 7 7 4 4 4 13 18 21 21 20 20 24 Hackware 19 | . . . . 8 10 12 22 28 19 17 14 37 32 27 27 19 22 21 21 22 25 25 20 21 Protection 4 | . . . 1 11 18 18 . . 3 . 5 2 5 8 13 8 4 . . . . . 2 1 Ballistic Gun 8 | . 17 14 22 22 19 9 . . 6 7 5 5 4 5 6 4 6 8 11 13 6 8 8 6 Launcher 1 | . 10 11 . . . . . . . . . . . . . . . . . . . . 1 . Special Weapon 1 | . . . . . . . . . . . . 4 5 5 1 2 1 4 1 . 4 3 2 1 Impact Weapon 1 | . . . . . 1 2 11 . . . . . . . . . . . . . . . . . Special Melee Weapon 1 | . . . . . . 10 11 5 . 3 . . . . . . . . . . . . . . Peak Build Rating 168 | 6 8 10 12 20 22 18 25 44 60 46 52 99 105 109 115 121 146 159 162 168 163 167 162 162 Average Rating 85 | 4 7 8 9 15 19 17 20 41 44 39 42 85 100 104 109 115 118 154 158 163 153 162 156 145 On Entrance 74 | . 6 8 9 12 20 16 18 24 40 27 41 51 98 105 104 79 117 146 155 161 154 155 162 159 Avg Prop Armor Cover (%) 6 | . . . . . . . . . . . . . . . . . . . . . . . . 6 Naked Turns . | . . . . . . . . . . . . . . . . . . . . . . . . . Heaviest Build 198 | 10 32 33 31 33 42 41 44 24 43 16 15 161 162 179 185 181 182 185 185 182 176 177 198 193 Greatest Support 178 | 40 40 40 40 40 40 40 52 74 80 16 25 178 178 178 178 177 177 177 177 177 178 178 178 163 Greatest Overweight (x) 6 | 1 . . . . 1 1 1 . 6 . 1 1 . 1 1 1 1 1 1 1 . . 1 1 Average Overweight (x) . | . . . . . . . . . . . . . . . . . . 1 1 . . . . . Largest Inventory Capacity 30 | 8 15 15 15 15 15 15 15 15 15 5 5 30 30 30 30 30 30 30 30 30 30 30 30 30 Average Capacity 22 | 7 13 15 15 15 15 15 15 15 13 5 5 19 30 30 30 30 30 30 30 30 30 30 30 25 Most Carried 30 | 1 13 15 15 15 15 15 15 13 13 5 5 30 30 30 29 26 30 30 30 30 30 30 30 30 Average Carried 20 | . 9 13 14 13 14 14 14 9 8 4 4 14 29 29 27 22 25 28 29 29 28 29 26 21 Final Capacity 30 | 8 15 15 15 15 15 15 15 15 5 5 5 30 30 30 30 30 30 30 30 30 30 30 30 5 Final Carried 30 | 1 13 15 14 15 15 14 13 9 5 4 5 30 30 29 27 23 30 30 29 30 30 30 26 1 Class Distribution -------------------- 28% | Bothacker-Mutant 18% | Botlord-Gunner 18% | Scavenger-Mutant 9% | Botlord-Mutant 9% | Commander-Mutant 4% | Bothacker-Sprinter 4% | Scavenger-Gunner 4% | Mutant Dominant Class ---------------- Scavenger-Mutant | -10/Materials Scavenger-Mutant | -10/Mines Mutant | -9/Materials Scavenger-Mutant | -9/Storage Scavenger-Mutant | -9/Garrison Bothacker-Mutant | -9/Recycling Commander-Mutant | -9/Scraptown Commander-Mutant | -6/Factory Scavenger-Mutant | -6/Garrison Bothacker-Sprinter | -5/Factory Scavenger-Sprinter | -4/Factory Bothacker-Mutant | -4/Garrison Bothacker-Mutant | -4/Factory Bothacker-Mutant | -4/Extension Bothacker-Mutant | -3/Research Bothacker-Mutant | -3/Testing Botlord-Mutant | -3/Garrison Botlord-Skirmisher | -2/Research Botlord-Gunner | -2/Garrison Botlord-Gunner | -2/Research Botlord-Gunner | -2/Garrison Botlord-Gunner | -1/Access Botlord-Gunner | -1/Garrison Botlord-Gunner | -1/Access Resources | -11 -10 -10 -9 -9 -9 -9 -9 -6 -6 -5 -4 -4 -4 -4 -3 -3 -3 -2 -2 -2 -2 -1 -1 -1 ----------- Run | Yrd Mat Min Mat Sto Gar Rec Scr Fac Gar Fac Fac Gar Fac Ext Res Tes Gar Res Gar Res Gar Acc Gar Acc Matter Collected 8145 | 210 231 27 22 71 539 172 17 . 994 . . 810 161 595 60 340 877 . 630 235 435 277 452 990 Remotely . | . . . . . . . . . . . . . . . . . . . . . . . . . Salvage Created 8469 | . 408 17 60 206 613 . . . 1077 . . 790 120 . 315 260 692 . 1116 230 378 461 428 1298 Parts 405 | . 37 . 5 9 34 . . . 46 . . 27 4 . 19 13 27 . 45 21 23 14 18 63 Haulers Intercepted 3 | . 1 . . . . . . . . . . . . . . . . . . . . . . 2 Recyclers Shooed 4 | . . . 1 1 . . . . . . . . . . . . . . . . . . . 2 Parts Field Recycled . | . . . . . . . . . . . . . . . . . . . . . . . . . Retrieved Matter . | . . . . . . . . . . . . . . . . . . . . . . . . . Parts Self-Destructed . | . . . . . . . . . . . . . . . . . . . . . . . . . Prevented . | . . . . . . . . . . . . . . . . . . . . . . . . . Parts Restored . | . . . . . . . . . . . . . . . . . . . . . . . . . Kills | -11 -10 -10 -9 -9 -9 -9 -9 -6 -6 -5 -4 -4 -4 -4 -3 -3 -3 -2 -2 -2 -2 -1 -1 -1 ------- Run | Yrd Mat Min Mat Sto Gar Rec Scr Fac Gar Fac Fac Gar Fac Ext Res Tes Gar Res Gar Res Gar Acc Gar Acc Combat Hostiles Destroyed 143 | . 12 2 1 2 17 . . . 24 . . 2 2 . 4 4 13 . 17 5 7 5 9 17 Melee 3 | . . . . . . . . . 1 . . . . . . 1 . . . . 1 . . . Guns 121 | . 7 2 1 2 16 . . . 20 . . 2 2 . 4 3 13 . 17 5 6 5 5 11 AOE 14 | . 5 . . . . . . . . . . . . . . . . . . . . . 4 5 Classes Destroyed 16 | . 6 1 1 . 2 . . . 2 . . 1 . . . . . . 2 . . . . 1 Worker 3 | . 1 . . . . . . . . . . . . . . . . . . 1 . . . 1 Hauler 3 | . 1 . . . . . . . . . . . . . . . . . . . . . . 2 Recycler 4 | . 2 . . 1 . . . . . . . . . . . . . . . . . . . 1 Operator 2 | . 2 . . . . . . . . . . . . . . . . . . . . . . . Watcher 3 | . . . . . . . . . . . . . . . . . . . . . . . . 3 Swarmer 48 | . 9 . . . 4 . . . 10 . . 1 . . . . 7 . 7 2 3 . 4 1 Grunt 41 | . 3 . . . 8 . . . 6 . . . 1 . 2 3 5 . 6 . 1 3 1 2 Brawler 5 | . . . . . 2 . . . 2 . . . . . . . . . . . . 1 . . Duelist 1 | . . . . . 1 . . . . . . . . . . . . . . . . . . . Sentry 9 | . . . 1 2 2 . . . 2 . . . . . 1 . . . . . . 1 . . Specialist 2 | . . . . . . . . . . . . . . . . . . . 2 . . . . . Hunter 11 | . . . . . . . . . 3 . . . . . . . . . . . . . 2 6 Programmer 21 | . . . . . . . . . . . . 1 1 . 1 1 1 . . 3 3 . 2 8 Behemoth 2 | . . . . . . . . . 1 . . . . . . . . . 1 . . . . . Executioner 1 | . . . . . . . . . . . . . . . . . . . 1 . . . . . Assembled 2 | . . 2 . . . . . . . . . . . . . . . . . . . . . . Best Kill Streak 9 | . 9 1 1 2 4 . . . 4 . . 1 1 . 3 3 4 . 5 3 5 2 6 6 Combat Bots Only 6 | . 6 1 1 1 4 . . . 4 . . 1 1 . 3 3 4 . 5 3 5 2 6 4 Max Kills in Single Turn 6 | . 6 1 1 1 1 . . . 1 . . 1 1 . 1 1 1 . 2 1 1 2 2 2 Gunslinging 1 | . . . . . . . . . . . . . . . . . . . . . . 1 . . Exploded 4 | . 4 . . . . . . . . . . . . . . . . . . . . . 2 2 Melee 1 | . . . . . . . . . 1 . . . . . . 1 . . . . 1 . . . Uniques/NPCs Destroyed . | . . . . . . . . . . . . . . . . . . . . . . . . . Combat | -11 -10 -10 -9 -9 -9 -9 -9 -6 -6 -5 -4 -4 -4 -4 -3 -3 -3 -2 -2 -2 -2 -1 -1 -1 -------- Run | Yrd Mat Min Mat Sto Gar Rec Scr Fac Gar Fac Fac Gar Fac Ext Res Tes Gar Res Gar Res Gar Acc Gar Acc Hostile Shots Fired 1765 | . 61 3 2 14 128 12 . 22 384 2 41 35 15 36 100 78 137 . 179 40 52 32 53 339 Missed 521 | . 13 . 1 4 32 1 . 6 101 . 22 16 7 7 22 21 19 . 81 13 9 12 15 119 Hits 1244 | . 48 3 1 10 96 11 . 16 283 2 19 19 8 29 78 57 118 . 98 27 43 20 38 220 Melee 11 | . . . . . 7 . . . 1 . . . . . . . . . . . . 3 . . Projectile 1233 | . 48 3 1 10 89 11 . 16 282 2 19 19 8 29 78 57 118 . 98 27 43 17 38 220 AOE 10 | . . . . . . 8 . . . . . . . . . . . . . 1 . . . 1 Critical Strikes 51 | . . . . 1 2 . . 1 8 . 1 1 . 3 . 6 6 . 2 2 4 3 3 8 Actively Blocked 34 | . . . . . . . . . . . . . . . . 6 6 . 2 2 4 3 3 8 Part Disruptions 2 | . . . . . . . . . . . . . . . . . . . . 1 . . . 1 Damage Taken 22634 | . 565 52 15 144 1327 396 . 313 4321 33 330 309 208 671 1496 1231 2223 . 1449 701 1107 522 969 4252 Core 3303 | . 120 20 . 60 205 22 . 57 779 . 110 13 . 89 137 116 167 . 168 106 188 28 27 891 Absorbed by Shields 557 | . . . . . 37 . . . 85 . 9 . . . . . 277 . 149 . . . . . Reduced by Siege Mode 450 | . . . . . . . . . . . . . . . . . 130 . 88 . 102 . 55 75 Redirected to Shielding 56 | . . . . . . . . . . . . . . . 56 . . . . . . . . . Ignored by Resistances 107 | . . . . . . . . . . 4 30 10 . 63 . . . . . . . . . . Regen/Repaired (Parts) 1816 | . . . . . . . . . . 5 . . 23 220 . 385 1114 . 69 . . . . . Core Remaining (%) 58 | 100 . 44 . . . . 28 . 1 100 . . . 81 . . 67 . . . 68 . . 40 Volleys Fired 793 | . 56 3 3 5 50 1 . . 136 . . 119 27 76 22 28 61 1 41 15 35 18 31 65 Largest 3 | . 2 1 2 2 2 1 . . 2 . . 1 1 1 2 2 2 2 3 3 2 2 3 3 Hottest 164 | . 40 20 43 43 46 23 . . 155 . . 40 33 35 70 123 70 76 114 114 78 75 124 164 Shots Fired 1205 | . 72 3 6 10 100 2 . . 230 . . 119 27 77 41 34 106 2 95 37 48 31 47 118 Gun 1028 | . 66 3 6 10 100 2 . . 230 . . 110 10 32 38 27 96 2 90 33 32 26 29 86 Cannon 5 | . . . . . . . . . . . . . . . . . . . . . . . . 5 Launcher 25 | . 6 . . . . . . . . . . . . . 2 . . . . . . . 2 15 Special 147 | . . . . . . . . . . . . 9 17 45 1 7 10 . 5 4 16 5 16 12 Kinetic 946 | . 66 3 6 10 100 2 . . 150 . . 110 10 32 38 25 96 2 90 33 32 26 29 86 Thermal 82 | . . . . . . . . . 80 . . . . . . 2 . . . . . . . . Explosive 25 | . 6 . . . . . . . . . . . . . 2 . . . . . . . 2 15 Electromagnetic 5 | . . . . . . . . . . . . . . . . . . . . . . . . 5 Robot Hit Streak 48 | . 5 7 10 10 13 . . . 12 . . 48 30 16 8 7 21 . 20 10 27 32 15 18 Robot Miss Streak 4 | . 3 . 1 . 3 1 . . 3 . . 2 1 4 1 3 2 . 3 2 1 2 2 2 Penetration Max 2 | . . . . . . . . . 1 . . . 1 . . 1 . . 2 1 . 1 1 1 Secondary Targets 14 | . 1 . . . 3 . . . 2 . . . . . . . 1 . 3 1 . 1 . 2 Max Gunslinging Chain 1 | . 1 . . . 1 . . . 1 . . . . . . . 1 . 1 1 . 1 . 1 Shots Hit Robots 872 | . 44 3 5 8 88 32 . . 167 2 . 88 20 44 28 18 76 . 64 21 30 24 36 74 Core Hits 345 | . 31 2 2 5 25 . . . 65 . . 28 5 5 11 5 27 . 33 13 10 9 15 54 Critical Kills 31 | . . . . . 2 . . . 2 . . 1 . . 2 2 7 . 1 . 2 3 4 5 Critical Parts Destroyed 25 | . . . 1 . . . . . 2 . . 2 1 2 2 1 3 . . . 3 3 2 3 Critical Strikes 63 | . . . 1 . 2 1 . . 7 . . 3 1 2 6 3 10 . 1 . 5 7 6 8 Burn 3 | . . . . . . . . . 3 . . . . . . . . . . . . . . . Destroy 56 | . . . 1 . 2 . . . 1 . . 3 1 2 6 3 10 . 1 . 5 7 6 8 Smash 4 | . . . . . . 1 . . 3 . . . . . . . . . . . . . . . Melee Attacks 84 | . . . . . 34 32 . . 16 2 . . . . . . . . . . . . . . Impact 50 | . . . . . 34 4 . . 12 . . . . . . . . . . . . . . . Slashing . | . . . . . . . . . . . . . . . . . . . . . . . . . Piercing . | . . . . . . . . . . . . . . . . . . . . . . . . . Sneak Attacks 31 | . . . . . . 25 . . 4 2 . . . . . . . . . . . . . . Combat Hostiles . | . . . . . . . . . . . . . . . . . . . . . . . . . Follow-up Attacks . | . . . . . . . . . . . . . . . . . . . . . . . . . Damage Inflicted 19319 | . 766 31 68 114 1465 113 . 4 2973 1 . 2061 231 411 735 450 1827 . 2448 572 367 289 872 3521 Guns 15167 | . 301 31 68 114 1022 . . . 2568 . . 2061 231 411 721 431 1814 . 2448 558 353 289 419 1327 Cannons 235 | . . . . . . . . . . . . . . . . . . . . . . . . 235 Explosions 2871 | . 462 . . . . . . . . . . . . . 1 . . . . . . . 453 1955 Melee 958 | . . . . . 443 113 . . 402 . . . . . . . . . . . . . . . Ramming 88 | . 3 . . . . . . 4 3 1 . . . . 13 19 13 . . 14 14 . . 4 Kinetic 13860 | . 301 31 68 114 1022 . . . 1261 . . 2061 231 411 721 431 1814 . 2448 558 353 289 419 1327 Thermal 1307 | . . . . . . . . . 1307 . . . . . . . . . . . . . . . Explosive 2871 | . 462 . . . . . . . . . . . . . 1 . . . . . . . 453 1955 Electromagnetic 235 | . . . . . . . . . . . . . . . . . . . . . . . . 235 Impact 958 | . . . . . 443 113 . . 402 . . . . . . . . . . . . . . . Slashing . | . . . . . . . . . . . . . . . . . . . . . . . . . Piercing . | . . . . . . . . . . . . . . . . . . . . . . . . . Highest Corruption 26 | . . . . . 3 3 3 . 2 . . 1 1 1 . 7 10 . . 2 5 5 12 26 Average Corruption 5 | . . . . . 3 3 3 . 2 . . 1 1 1 . 3 8 . . 2 3 5 8 17 Corruption Purged . | . . . . . . . . . . . . . . . . . . . . . . . . . Corruption Blocked . | . . . . . . . . . . . . . . . . . . . . . . . . . Effects 287 | . . . . . 13 23 27 . 5 . . 9 4 9 . 2 87 . . . 16 9 19 64 Message Errors 71 | . . . . . 3 4 10 . 1 . . 1 1 2 . 1 20 . . . 4 2 6 16 Matter Fused 82 | . . . . . 5 9 8 . 1 . . 4 1 3 . . 27 . . . 3 2 4 15 Heat Flow Errors 28 | . . . . . 1 1 3 . . . . . 1 2 . 1 8 . . . 1 3 3 4 Energy Discharges 25 | . . . . . . 2 1 . 1 . . 1 . . . . 13 . . . . . 3 4 Parts Rejected 2 | . . . . . . 1 . . . . . . . . . . . . . . . . 1 . Parts Fused 1 | . . . . . . . 1 . . . . . . . . . . . . . . . . . Data Loss (minor) 32 | . . . . . 3 4 3 . . . . 1 1 1 . . 8 . . . 3 1 . 7 Data Loss (major) 6 | . . . . . 1 . . . . . . . . . . . 4 . . . . . . 1 Misfires 17 | . . . . . . 1 . . 1 . . 1 . 1 . . 4 . . . 4 . . 5 Alerts 10 | . . . . . . 1 1 . 1 . . . . . . . 1 . . . 1 1 1 3 Misdirections 4 | . . . . . . . . . . . . . . . . . . . . . . . . 4 Weapon Failures 9 | . . . . . . . . . . . . 1 . . . . 2 . . . . . 1 5 Overload Shots . | . . . . . . . . . . . . . . . . . . . . . . . . . Overflow Damage 308 | . 28 . . . 4 . . . 122 . . . . . . . . . . . . . 93 61 Projectiles . | . . . . . . . . . . . . . . . . . . . . . . . . . Explosions 182 | . 28 . . . . . . . . . . . . . . . . . . . . . 93 61 Melee 126 | . . . . . 4 . . . 122 . . . . . . . . . . . . . . . Knockbacks . | . . . . . . . . . . . . . . . . . . . . . . . . . Impact . | . . . . . . . . . . . . . . . . . . . . . . . . . Kinetic . | . . . . . . . . . . . . . . . . . . . . . . . . . Secondary . | . . . . . . . . . . . . . . . . . . . . . . . . . Self-Inflicted Damage 219 | . 146 . . . . . . . . . . . . . . . . . . . . . 65 8 Shots 8 | . 6 . . . . . . . . . . . . . . . . . . . . . 1 1 Rammed 12 | . 1 . . . . . . . 2 1 . . . . 1 5 1 . . . 1 . . . Targets Rammed 19 | . 1 . . . . . . 3 3 1 . . . . 1 6 1 . . 1 1 . . 1 Kicked 4 | . . . . . . . . 3 1 . . . . . . . . . . . . . . . Crushed 3 | . . . . . . . . . . . . . . . . 1 . . . 1 . . . 1 Highest Temperature 415 | . 6 . . 12 160 250 131 . 415 . 36 29 215 170 2 148 269 . 11 . 168 118 199 224 Average Temperature 73 | . 6 . . 5 30 120 67 . 140 . 23 5 113 76 2 54 61 . 5 . 71 69 100 57 Received Heat Transfer 2844 | . 78 . 9 45 420 9 . 90 854 18 109 21 48 126 153 159 252 . 144 108 81 27 27 66 Effects 8 | . . . . . . . . . 7 . . . . . . . . . . . . . . 1 Energy Bleed 2 | . . . . . . . . . 2 . . . . . . . . . . . . . . . Interference 6 | . . . . . . . . . 5 . . . . . . . . . . . . . . 1 Siege Activations 20 | . . . . . . . . . . . . . . 1 . . 5 . 4 2 1 . 2 5 Total Turns 508 | . . . . . . . . . . . . . . 15 . . 133 . 65 18 40 . 183 54 Longest Duration 120 | . . . . . . . . . . . . . . 15 . . 57 . 20 9 40 . 120 23 Martial Activations . | . . . . . . . . . . . . . . . . . . . . . . . . . Shielding Activations . | . . . . . . . . . . . . . . . . . . . . . . . . . Robots Disrupted . | . . . . . . . . . . . . . . . . . . . . . . . . . Combat Hostiles . | . . . . . . . . . . . . . . . . . . . . . . . . . Robots Corrupted 5 | . . . . . 1 . . . 3 . . . . . . . . . . . . . . 1 Combat Hostiles 5 | . . . . . 1 . . . 3 . . . . . . . . . . . . . . 1 Parts Fried 4 | . . . . . 1 . . . 1 . . . . . . . . . . 1 . . . 1 Impact Corruptions 7 | . . . . . 2 . . . 5 . . . . . . . . . . . . . . . Robots Melted . | . . . . . . . . . . . . . . . . . . . . . . . . . Combat Hostiles . | . . . . . . . . . . . . . . . . . . . . . . . . . Parts Melted 8 | . . . . 2 . . . . 4 . . 1 . . . . . . 1 . . . . . Heat Transferred 2961 | . . . . . . . . . 2961 . . . . . . . . . . . . . . . Parts Sabotaged . | . . . . . . . . . . . . . . . . . . . . . . . . . Parts Stolen . | . . . . . . . . . . . . . . . . . . . . . . . . . Parts Stripped . | . . . . . . . . . . . . . . . . . . . . . . . . . Power Chain Reactions . | . . . . . . . . . . . . . . . . . . . . . . . . . Alert | -11 -10 -10 -9 -9 -9 -9 -9 -6 -6 -5 -4 -4 -4 -4 -3 -3 -3 -2 -2 -2 -2 -1 -1 -1 ------- Run | Yrd Mat Min Mat Sto Gar Rec Scr Fac Gar Fac Fac Gar Fac Ext Res Tes Gar Res Gar Res Gar Acc Gar Acc Maximum Alert Level 5 | . . . . . 3 1 . . 3 2 . 4 2 1 . . 3 2 5 4 4 3 3 2 Low Security (%) 39 | 100 100 100 100 100 20 72 . 100 40 . 100 3 . 95 100 100 47 . . . . . . . Level 1 13 | . . . . . 12 27 . . 33 75 . 27 . 4 . . 2 . 10 . . . . 62 Level 2 21 | . . . . . 53 . . . 25 24 . 28 100 . . . 25 100 14 . . 4 44 37 Level 3 16 | . . . . . 12 . . . . . . 37 . . . . 24 . 26 77 27 95 55 . Level 4 7 | . . . . . . . . . . . . 3 . . . . . . 38 22 72 . . . Level 5 1 | . . . . . . . . . . . . . . . . . . . 10 . . . . . High Security . | . . . . . . . . . . . . . . . . . . . . . . . . . Max Security . | . . . . . . . . . . . . . . . . . . . . . . . . . Peak Influence 1794 | . 176 5 36 46 780 351 . 20 774 413 163 1180 619 213 103 70 984 553 1794 1422 1285 787 794 607 Initial 1016 | . . . . 14 23 351 . . . 413 158 107 619 196 81 5 . 553 347 1008 1016 770 561 467 Average 444 | . 52 . 9 15 444 119 . . 279 379 140 615 503 88 76 12 404 502 1067 1005 1166 736 697 406 Influence Increases 10022 | . 356 5 56 72 817 109 . 44 1099 11 65 1133 107 646 229 115 1084 100 1567 731 369 222 318 767 Destroy 0b10 Robot/C 3980 | . 240 . 40 40 340 60 . . 480 . . 60 80 340 100 80 360 . 700 280 140 100 200 340 Destroy 0b10 Robot/NC 145 | . 30 5 . 5 . 15 . . . . . 30 5 5 . . . . . 15 . . . 35 Destroy Leader 524 | . 52 . 10 20 20 . . . 40 . . 10 10 32 30 20 20 . 60 40 30 20 30 80 Allied During Kill 771 | . . . 6 . . 16 . . . . . . 8 215 3 . 60 . 193 240 24 . 6 . Successful Hack 167 | . . . . 6 12 6 . 14 12 11 5 28 . 12 27 . . 10 . 12 . . 12 . Disable Machine 120 | . . . . . 15 . . . . . . 15 . 15 . . . 15 15 . . 15 . 30 Anti-Garrison Action 2600 | . . . . . 350 . . . 200 . . 900 . . . . 500 . 500 . 150 . . . Destroy Structure 860 | . 19 . . 1 20 12 . . 52 . . 60 4 12 54 . 84 75 54 144 10 42 70 147 Partial Spotted 60 | . . . . . . . . . . . . 15 . 15 . 15 . . . . . . . 15 Lose Combat Pursuer 795 | . 15 . . . 60 . . 30 315 . 60 15 . . 15 . 60 . 45 . 15 45 . 120 Influence Decreases 9554 | . 356 5 20 72 73 889 . 44 310 476 236 106 887 889 376 125 100 621 236 1170 439 805 241 1078 Entered New Map 4538 | . . . . 22 13 429 . . . 376 166 46 561 204 76 5 . 431 116 786 339 515 141 312 Time Decay 3167 | . 336 5 20 50 . 390 . 24 . 80 60 . 246 492 180 114 . 190 . 294 . 180 . 506 Lost Part 906 | . 10 . . . 60 10 . 20 310 10 10 20 10 . 80 6 60 . . 10 20 10 40 220 Lost Ally 943 | . 10 . . . . 60 . . . 10 . 40 70 193 40 . 40 . 120 80 80 100 60 40 Squads Dispatched 32 | . 2 . 1 . . . . 2 . 1 . . 3 3 2 2 . 2 . 8 . 1 . 5 Investigation 6 | . . . . . . . . . . 1 . . . 1 1 1 . 1 . 1 . . . . Extermination 11 | . . . . . . . . 1 . . . . 1 . . 1 . 1 . 2 . 1 . 4 Reinforcement 9 | . 2 . 1 . . . . 1 . . . . 1 2 1 . . . . . . . . 1 Assault 4 | . . . . . . . . . . . . . 1 . . . . . . 3 . . . . Garrison 2 | . . . . . . . . . . . . . . . . . . . . 2 . . . . Intercept . | . . . . . . . . . . . . . . . . . . . . . . . . . Searches Triggered . | . . . . . . . . . . . . . . . . . . . . . . . . . Construction Impeded 3 | . . . . . . . . . . . . . 1 1 1 . . . . . . . . . Haulers Reinforced 1 | . . . . . . . . . . . . . . . . . . . . . . . . 1 Active Scanning Responses . | . . . . . . . . . . . . . . . . . . . . . . . . . Cargo Convoy Interrupts . | . . . . . . . . . . . . . . . . . . . . . . . . . Alert ID Control Effect 9 | . . . . . . . . . . . . . . . . . 3 . . 2 4 . . . Stealth | -11 -10 -10 -9 -9 -9 -9 -9 -6 -6 -5 -4 -4 -4 -4 -3 -3 -3 -2 -2 -2 -2 -1 -1 -1 --------- Run | Yrd Mat Min Mat Sto Gar Rec Scr Fac Gar Fac Fac Gar Fac Ext Res Tes Gar Res Gar Res Gar Acc Gar Acc Distress Signals 12 | . 2 2 . 1 . . . 1 . . . . . 3 3 . . . . . . . . . Communications Jammed . | . . . . . . . . . . . . . . . . . . . . . . . . . Distress Signals . | . . . . . . . . . . . . . . . . . . . . . . . . . Times Spotted 360 | . 22 2 3 3 17 5 . 9 33 7 9 15 15 29 14 9 25 . 30 20 24 8 16 45 Peak Tracking Total 10 | . 8 1 2 3 8 2 . 6 10 8 8 7 4 7 7 4 4 . 5 6 7 4 5 8 Tactical Retreats 27 | . 1 . . . 1 . . 1 8 . 1 1 . . 1 . 2 . 3 . 1 2 . 5 Traps | -11 -10 -10 -9 -9 -9 -9 -9 -6 -6 -5 -4 -4 -4 -4 -3 -3 -3 -2 -2 -2 -2 -1 -1 -1 ------- Run | Yrd Mat Min Mat Sto Gar Rec Scr Fac Gar Fac Fac Gar Fac Ext Res Tes Gar Res Gar Res Gar Acc Gar Acc Traps Triggered 40 | . . . . . 11 . . 1 6 . 2 10 . . . . 2 . 5 1 . . . 2 Indirectly 2 | . . . . . . . . . . . . . . . . . . . . . . . . 2 Trap Hack Attempts . | . . . . . . . . . . . . . . . . . . . . . . . . . Triggered . | . . . . . . . . . . . . . . . . . . . . . . . . . Disarmed . | . . . . . . . . . . . . . . . . . . . . . . . . . Reprogrammed . | . . . . . . . . . . . . . . . . . . . . . . . . . Reused . | . . . . . . . . . . . . . . . . . . . . . . . . . Traps Extracted . | . . . . . . . . . . . . . . . . . . . . . . . . . Installed . | . . . . . . . . . . . . . . . . . . . . . . . . . Triggered . | . . . . . . . . . . . . . . . . . . . . . . . . . Machines | -11 -10 -10 -9 -9 -9 -9 -9 -6 -6 -5 -4 -4 -4 -4 -3 -3 -3 -2 -2 -2 -2 -1 -1 -1 ---------- Run | Yrd Mat Min Mat Sto Gar Rec Scr Fac Gar Fac Fac Gar Fac Ext Res Tes Gar Res Gar Res Gar Acc Gar Acc Machines Disabled 27 | . . . . . 3 . . . 3 . . 5 . 1 . . 4 1 4 . 3 1 . 2 Max in Single Turn 2 | . . . . . 1 . . . 2 . . 1 . . . . 1 1 1 . 1 . . 1 Garrison Relay 14 | . . . . . 2 . . . 1 . . 4 . . . . 2 . 2 . 3 . . . Phase Generator 1 | . . . . . . . . . 1 . . . . . . . . . . . . . . . Machines Repaired . | . . . . . . . . . . . . . . . . . . . . . . . . . Machines Dismantled . | . . . . . . . . . . . . . . . . . . . . . . . . . Machines Sabotaged . | . . . . . . . . . . . . . . . . . . . . . . . . . Overloaded Fab Kills . | . . . . . . . . . . . . . . . . . . . . . . . . . Hacking | -11 -10 -10 -9 -9 -9 -9 -9 -6 -6 -5 -4 -4 -4 -4 -3 -3 -3 -2 -2 -2 -2 -1 -1 -1 --------- Run | Yrd Mat Min Mat Sto Gar Rec Scr Fac Gar Fac Fac Gar Fac Ext Res Tes Gar Res Gar Res Gar Acc Gar Acc Machines Accessed 38 | . 3 . . 2 2 3 1 3 1 1 3 3 . 5 1 3 . 1 . 3 1 1 1 . Terminals 25 | . 3 . . 1 2 3 . . 1 1 1 3 . 4 1 2 . . . 1 1 . 1 . Fabricators 3 | . . . . . . . . 1 . . 1 . . . . . . . . 1 . . . . Repair Stations 2 | . . . . . . . . 1 . . . . . 1 . . . . . . . . . . Recycling Units . | . . . . . . . . . . . . . . . . . . . . . . . . . Scanalyzers . | . . . . . . . . . . . . . . . . . . . . . . . . . Garrison Access 7 | . . . . 1 . . . 1 . . 1 . . . . 1 . 1 . 1 . 1 . . Total Hacks 80 | . 10 . . 2 4 7 6 4 1 3 5 7 . 11 3 5 . 3 . 5 2 1 1 . Successful 40 | . 3 . . 2 1 2 6 2 1 2 3 2 . 5 2 1 . 3 . 2 1 1 1 . Failed 39 | . 6 . . . 3 5 . 2 . 1 2 5 . 6 1 4 . . . 3 1 . . . Catastrophic 8 | . . . . . 1 1 . 1 . 1 . 1 . 1 . 2 . . . . . . . . Database Lockouts 1 | . 1 . . . . . . . . . . . . . . . . . . . . . . . Manual 22 | . 10 . . . . 4 . . . 2 1 . . . . . . 1 . 4 . . . . Terminals 57 | . 10 . . 1 4 7 . . 1 3 3 7 . 9 3 4 . . . 2 2 . 1 . Fabricators 4 | . . . . . . . . 2 . . 1 . . . . . . . . 1 . . . . Repair Stations 3 | . . . . . . . . 1 . . . . . 2 . . . . . . . . . . Recycling Units . | . . . . . . . . . . . . . . . . . . . . . . . . . Scanalyzers . | . . . . . . . . . . . . . . . . . . . . . . . . . Garrison Access 10 | . . . . 1 . . . 1 . . 1 . . . . 1 . 3 . 2 . 1 . . Terminal Hacks 23 | . 1 . . 1 1 2 6 . 1 1 1 2 . 3 2 . . . . . 1 . 1 . Record 6 | . . . . . . . 6 . . . . . . . . . . . . . . . . . Part Schematic 1 | . . . . . . 1 . . . . . . . . . . . . . . . . . . Robot Analysis 1 | . 1 . . . . . . . . . . . . . . . . . . . . . . . Open Door 4 | . . . . 1 . . . . . . . . . 3 . . . . . . . . . . Open DSF 1 | . . . . . . . . . . . 1 . . . . . . . . . . . . . Branch Access Points 1 | . . . . . . . . . . . . . . . 1 . . . . . . . . . Emergency Access Points 4 | . . . . . 1 . . . 1 . . 1 . . 1 . . . . . . . . . Alert Level 1 | . . . . . . 1 . . . . . . . . . . . . . . . . . . Zone Layout 1 | . . . . . . . . . . 1 . . . . . . . . . . . . . . Patrol Navigation 1 | . . . . . . . . . . . . 1 . . . . . . . . . . . . Security Stations 2 | . . . . . . . . . . . . . . . . . . . . . 1 . 1 . Fabricator Hacks 1 | . . . . . . . . 1 . . . . . . . . . . . . . . . . Build 1 | . . . . . . . . 1 . . . . . . . . . . . . . . . . Repair Station Hacks 2 | . . . . . . . . . . . . . . 2 . . . . . . . . . . Scan Component 1 | . . . . . . . . . . . . . . 1 . . . . . . . . . . Repair 1 | . . . . . . . . . . . . . . 1 . . . . . . . . . . Recycling Unit Hacks . | . . . . . . . . . . . . . . . . . . . . . . . . . Scanalyzer . | . . . . . . . . . . . . . . . . . . . . . . . . . Garrison Access Hacks 8 | . . . . 1 . . . 1 . . 1 . . . . 1 . 2 . 1 . 1 . . Unlock Access 7 | . . . . 1 . . . 1 . . 1 . . . . 1 . 1 . 1 . 1 . . Coupler Status 1 | . . . . . . . . . . . . . . . . . . 1 . . . . . . Unauthorized Hacks 6 | . 2 . . . . . . . . 1 1 . . . . . . 1 . 1 . . . . Terminals 3 | . 2 . . . . . . . . 1 . . . . . . . . . . . . . . Assimilate 1 | . 1 . . . . . . . . . . . . . . . . . . . . . . . Operators 2 | . 1 . . . . . . . . 1 . . . . . . . . . . . . . . Fabricators 1 | . . . . . . . . . . . 1 . . . . . . . . . . . . . Liberate 1 | . . . . . . . . . . . 1 . . . . . . . . . . . . . Repair Stations . | . . . . . . . . . . . . . . . . . . . . . . . . . Recycling Units . | . . . . . . . . . . . . . . . . . . . . . . . . . Scanalyzers . | . . . . . . . . . . . . . . . . . . . . . . . . . Garrison Access 2 | . . . . . . . . . . . . . . . . . . 1 . 1 . . . . Reprogram 2 | . . . . . . . . . . . . . . . . . . 1 . 1 . . . . Data Cores Recovered . | . . . . . . . . . . . . . . . . . . . . . . . . . Used . | . . . . . . . . . . . . . . . . . . . . . . . . . Hacking Detections 28 | . 2 . . 1 2 3 . 3 1 1 1 1 . 3 1 2 . 1 . 3 1 1 1 . Full Trace Events 5 | . . . . . 1 . . . . . . . . 1 1 1 . 1 . . . . . . Feedback Events 1 | . . . . . . . . . . . . . . . 1 . . . . . . . . . Hackware Fried 1 | . . . . . . . . . . . . . . . 1 . . . . . . . . . Feedback Blocked . | . . . . . . . . . . . . . . . . . . . . . . . . . Robot Schematics Acquired . | . . . . . . . . . . . . . . . . . . . . . . . . . Robots Built 1 | . . . . . . . . 1 . . . . . . . . . . . . . . . . Authchips . | . . . . . . . . . . . . . . . . . . . . . . . . . Time 40 | . . . . . . . . 40 . . . . . . . . . . . . . . . . Total Robot Build Rating 1 | . . . . . . . . 1 . . . . . . . . . . . . . . . . Part Schematics Acquired 1 | . . . . . . 1 . . . . . . . . . . . . . . . . . . Parts Built . | . . . . . . . . . . . . . . . . . . . . . . . . . Authchips . | . . . . . . . . . . . . . . . . . . . . . . . . . Time . | . . . . . . . . . . . . . . . . . . . . . . . . . Total Part Build Rating . | . . . . . . . . . . . . . . . . . . . . . . . . . Part Studies Acquired . | . . . . . . . . . . . . . . . . . . . . . . . . . Parts Repaired 1 | . . . . . . . . . . . . . . 1 . . . . . . . . . . Time 62 | . . . . . . . . . . . . . . 62 . . . . . . . . . . Parts Recycled . | . . . . . . . . . . . . . . . . . . . . . . . . . Recycled Matter . | . . . . . . . . . . . . . . . . . . . . . . . . . Retrieved Matter . | . . . . . . . . . . . . . . . . . . . . . . . . . Retrieved Components . | . . . . . . . . . . . . . . . . . . . . . . . . . Parts Scanalyzed . | . . . . . . . . . . . . . . . . . . . . . . . . . Part Schematics Acquired . | . . . . . . . . . . . . . . . . . . . . . . . . . Parts Damaged . | . . . . . . . . . . . . . . . . . . . . . . . . . Bothacking | -11 -10 -10 -9 -9 -9 -9 -9 -6 -6 -5 -4 -4 -4 -4 -3 -3 -3 -2 -2 -2 -2 -1 -1 -1 ------------ Run | Yrd Mat Min Mat Sto Gar Rec Scr Fac Gar Fac Fac Gar Fac Ext Res Tes Gar Res Gar Res Gar Acc Gar Acc Used RIF Installer 5 | . . . . . 2 . . . . . . 1 . . . . 1 . . . 1 . . . Watcher Feeds 1 | . . . . . . . . . . . . . . . . . . . . . 1 . . . Patrol Navigation 1 | . . . . . 1 . . . . . . . . . . . . . . . . . . . Alert ID Control 1 | . . . . . . . . . . . . . . . . . 1 . . . . . . . Program Shield 1 | . . . . . . . . . . . . 1 . . . . . . . . . . . . Robots Hacked 75 | . . . . . . 3 . . 2 2 . 5 9 13 1 3 5 . 4 1 9 4 8 6 Non-combat 16 | . . . . . . 1 . . . 2 . . 4 3 . 3 2 . . . . . . 1 Combat 59 | . . . . . . 2 . . 2 . . 5 5 10 1 . 3 . 4 1 9 4 8 5 Robot Hacks Applied 81 | . . . . . . 3 . . 2 2 . 5 10 15 1 3 5 . 4 1 9 4 8 9 parse_system 1 | . . . . . . . . . . . . . . . . . . . . . . . . 1 generate_echo 2 | . . . . . . . . . . 1 . . 1 . . . . . . . . . . . find_fabricator 1 | . . . . . . . . . . . . . . . . . . . . . . . . 1 drop_inventory 1 | . . . . . . . . . . . . . . . . . . . . . . . . 1 find_recycling 1 | . . . . . . 1 . . . . . . . . . . . . . . . . . . map_route 1 | . . . . . . . . . . . . . 1 . . . . . . . . . . . mark_security 1 | . . . . . . . . . . . . . . 1 . . . . . . . . . . scatter_targeting 3 | . . . . . . . . . . . . . . 2 . . . . . . . 1 . . overload_power 4 | . . . . . . . . . . . . . 1 1 . 1 . . 1 . . . . . amplify_resonance 10 | . . . . . . . . . . . . 1 2 2 . . . . . . 2 . 1 2 wipe_record 1 | . . . . . . . . . . . . . . 1 . . . . . . . . . . disable_weapons 1 | . . . . . . . . . . . . . . 1 . . . . . . . . . . reboot_system 12 | . . . . . . . . . 2 . . . 1 . 1 . 1 . . . 1 1 4 1 go_dormant 1 | . . . . . . . . . . . . . . 1 . . . . . . . . . . overwrite_iff 6 | . . . . . . . . . . . . 3 . . . . . . 2 . . . . 1 formatsys_low 8 | . . . . . . . . . . 1 . . 2 1 . 2 2 . . . . . . . formatsys_high 27 | . . . . . . 2 . . . . . 1 2 5 . . 2 . 1 1 6 2 3 2 Relay Couplers Released 52 | . . . . . 7 . . . 3 . . 16 . . . . 7 . 6 . 13 . . . Machine Destruction 52 | . . . . . 7 . . . 3 . . 16 . . . . 7 . 6 . 13 . . . Attached 39 | . . . . . 1 1 . 2 2 . . 10 1 2 . . 3 1 2 1 7 2 1 3 Fabnet Peak Effective % . | . . . . . . . . . . . . . . . . . . . . . . . . . Robots Rewired 28 | . . . . . . 12 . . . . . . . 7 . . 4 . 5 . . . . . Allies Hacked . | . . . . . . . . . . . . . . . . . . . . . . . . . Hacks Repelled . | . . . . . . . . . . . . . . . . . . . . . . . . . Allies | -11 -10 -10 -9 -9 -9 -9 -9 -6 -6 -5 -4 -4 -4 -4 -3 -3 -3 -2 -2 -2 -2 -1 -1 -1 -------- Run | Yrd Mat Min Mat Sto Gar Rec Scr Fac Gar Fac Fac Gar Fac Ext Res Tes Gar Res Gar Res Gar Acc Gar Acc Total Allies 78 | . 1 2 . . . 14 . 1 . 1 . 4 4 17 . 2 8 . 8 2 6 2 3 3 Largest Group 11 | . 1 2 2 2 . 10 10 11 . 1 . 1 3 9 2 1 7 7 8 7 3 4 2 1 Highest-Rated Group 588 | . 10 45 45 45 . 116 116 126 . 14 . 47 112 389 97 45 459 459 528 588 186 243 128 64 Highest-Rated Ally 99 | . 10 31 31 31 . 34 21 21 . 14 . 47 49 56 56 45 99 99 99 89 64 69 64 64 Total Orders 39 | . . . . . . . . . . 1 . . 2 1 . 1 16 . 9 9 . . . . STAY 11 | . . . . . . . . . . . . . . . . . 5 . 4 2 . . . . FOLLOW 7 | . . . . . . . . . . . . . . . . . 4 . 1 2 . . . . GUARD 5 | . . . . . . . . . . . . . . . . . . . . 5 . . . . AID 16 | . . . . . . . . . . 1 . . 2 1 . 1 7 . 4 . . . . . Ally Attacks 421 | . . 12 3 5 . 10 . 6 . . . 8 13 157 7 . 30 . 79 47 19 8 16 1 Total Damage 14084 | . . 127 42 103 . 482 . 74 . . . 152 356 4490 329 . 1467 . 3035 1894 633 338 562 . Kills 79 | . . 2 1 . . 5 . 1 . . . 1 3 19 1 . 8 . 19 14 4 . 1 . Allies Corrupted 4 | . . . . . . . . . . . . . 1 . . . . . . 1 . 2 . . Allies Melted 3 | . . . . . . . . . . . . . . 2 . . . . 1 . . . . . Intel | -11 -10 -10 -9 -9 -9 -9 -9 -6 -6 -5 -4 -4 -4 -4 -3 -3 -3 -2 -2 -2 -2 -1 -1 -1 ------- Run | Yrd Mat Min Mat Sto Gar Rec Scr Fac Gar Fac Fac Gar Fac Ext Res Tes Gar Res Gar Res Gar Acc Gar Acc Active Infowar (turns) 13439 | . . . . . . . . . . 16 120 1616 528 1665 379 461 2383 386 2342 654 695 365 513 1316 Optics 13439 | . . . . . . . . . . 16 120 1616 528 1665 379 461 2383 386 2342 654 695 365 513 1316 Sensors 2548 | . . . . . . . . . . . . . . . . 460 1309 309 226 . . . . 244 Robot Analysis Total 1 | . 1 . . . . . . . . . . . . . . . . . . . . . . . Derelict Logs Recovered . | . . . . . . . . . . . . . . . . . . . . . . . . . Drone Launches . | . . . . . . . . . . . . . . . . . . . . . . . . . Drone Recoveries . | . . . . . . . . . . . . . . . . . . . . . . . . . Exploration | -11 -10 -10 -9 -9 -9 -9 -9 -6 -6 -5 -4 -4 -4 -4 -3 -3 -3 -2 -2 -2 -2 -1 -1 -1 ------------- Run | Yrd Mat Min Mat Sto Gar Rec Scr Fac Gar Fac Fac Gar Fac Ext Res Tes Gar Res Gar Res Gar Acc Gar Acc Turns Passed 22647 | 71 1214 900 63 147 2068 1158 1599 340 1447 162 120 1616 528 1665 379 461 2383 386 2342 654 695 365 513 1371 Spaces Moved 10577 | 44 474 283 32 59 879 480 1007 207 863 271 253 1181 271 588 145 149 808 137 676 242 372 186 107 863 Core 11 | 8 . . . . . . . . . . . . . . . . . . . . . . . 3 Treads 7592 | 36 474 283 32 59 879 480 873 . . . . 444 271 588 145 149 808 137 676 242 372 186 107 351 Legs 813 | . . . . . . . 134 207 472 . . . . . . . . . . . . . . . Wheels . | . . . . . . . . . . . . . . . . . . . . . . . . . Hover . | . . . . . . . . . . . . . . . . . . . . . . . . . Flight 2161 | . . . . . . . . . 391 271 253 737 . . . . . . . . . . . 509 Fastest Speed 26 | 50 160 160 160 160 160 160 140 130 26 26 26 27 160 160 160 163 163 243 243 153 150 150 150 30 Average Speed 155 | 142 160 160 160 160 194 219 152 130 89 26 27 92 160 199 211 189 197 243 245 218 150 150 230 118 Slowest Speed 515 | 160 160 160 160 160 240 240 240 140 515 26 109 240 160 250 246 243 243 243 246 246 153 150 238 245 Overloaded Moves . | . . . . . . . . . . . . . . . . . . . . . . . . . Propulsion Burnouts . | . . . . . . . . . . . . . . . . . . . . . . . . . Robots Hopped 22 | . . . . . . . . . . . 11 . . . . . . . . . . . . 11 Potential Cave-ins 2 | . . . . . . . . . . . . . . . 2 . . . . . . . . . Cave-ins Triggered . | . . . . . . . . . . . . . . . . . . . . . . . . . Exploration Rate (%) 34 | 4 58 67 5 13 59 89 56 6 54 7 8 92 8 79 6 14 55 5 54 7 53 6 14 35 Regions Visited 24 Branch Regions 6 Pre-discovered Areas . | . . . . . . . . . . . . . . . . . . . . . . . . . Known Exits Taken 9 | . . . 1 1 . . . 1 . . 1 . . . 1 1 . 1 . 1 . 1 . . Unknown Exits Taken 8 | 1 1 1 . . . 1 1 . . 1 . . 1 1 . . . . . . . . . . Scrap Searched 3 | . . 1 . . . . 2 . . . . . . . . . . . . . . . . . Spaces Dug 51 | . . . . . . . . . . . . . 1 . 50 . . . . . . . . . Terrain Destroyed 288 | . 37 . . . . . . . 78 . . . 2 2 51 1 4 1 7 11 . 1 44 49 Melee . | . . . . . . . . . . . . . . . . . . . . . . . . . Projectile 35 | . . . . . . . . . 2 . . . 2 2 1 1 4 1 7 11 . 1 1 2 AOE 253 | . 37 . . . . . . . 76 . . . . . 50 . . . . . . . 43 47 Terrain Rammed . | . . . . . . . . . . . . . . . . . . . . . . . . . Walls Destroyed . | . . . . . . . . . . . . . . . . . . . . . . . . . Machines Disabled . | . . . . . . . . . . . . . . . . . . . . . . . . . Actions | -11 -10 -10 -9 -9 -9 -9 -9 -6 -6 -5 -4 -4 -4 -4 -3 -3 -3 -2 -2 -2 -2 -1 -1 -1 --------- Run | Yrd Mat Min Mat Sto Gar Rec Scr Fac Gar Fac Fac Gar Fac Ext Res Tes Gar Res Gar Res Gar Acc Gar Acc Total 15785 | 50 867 731 38 104 1080 564 1080 274 1344 362 293 1648 355 1041 175 289 1500 189 1288 340 477 244 342 1110 Wait 3599 | . 322 431 . 30 62 32 55 56 197 78 40 201 43 313 4 90 589 44 527 72 52 33 190 138 Move 10506 | 43 473 282 31 58 877 479 1006 206 861 271 231 1180 270 587 144 148 806 136 674 241 370 185 106 841 Hop 20 | . . . . . . . . . . . 10 . . . . . . . . . . . . 10 Pick Up 161 | 1 9 7 . 2 8 2 3 1 20 2 1 41 5 12 . . 11 2 8 2 6 1 3 14 Fast Attach 100 | 6 2 . 1 . 3 2 4 1 27 2 1 13 3 5 . 3 9 2 4 2 1 2 2 5 Attach 86 | . . 1 1 1 4 2 . 5 15 3 . 5 1 5 2 8 4 2 . . 4 1 6 16 Detach 13 | . . 1 . . . . . . 2 . . 1 . . . 3 1 1 . . . . . 4 Swap 82 | . 4 1 1 4 14 6 2 2 9 1 . 4 . 2 2 3 5 . 3 4 6 3 2 4 Drop 147 | . . 5 1 4 15 6 10 . 18 3 2 27 6 13 . . 3 1 13 3 2 1 2 12 Fire 793 | . 56 3 3 5 50 1 . . 136 . . 119 27 76 22 28 61 1 41 15 35 18 31 65 Melee 84 | . . . . . 34 32 . . 16 2 . . . . . . . . . . . . . . Ram 2 | . . . . . . . . . 2 . . . . . . . . . . . . . . . Kick 4 | . . . . . . . . 3 1 . . . . . . . . . . . . . . . Crush 12 | . 1 . . . . . . . . . . . . . 1 6 1 . . 1 1 . . 1 Escape Stasis 128 | . . . . . 13 . . . 40 . 8 57 . . . . 2 . 8 . . . . . Rewire 48 | . . . . . . 2 . . . . . . . 28 . . 8 . 10 . . . . . Trap . | . . . . . . . . . . . . . . . . . . . . . . . . . Miscellaneous . | . . . . . . . . . . . . . . . . . . . . . . . . . Route ------- -11/Scrapyard -10/Materials (discovered 2 exits: [*Mat] / [*Min]) -10/Mines -9/Materials -9/Storage -9/Garrison (discovered 2 exits: *Rec x2) -9/Recycling (discovered 2 exits: [*Fac] / *Scr) -9/Scraptown -6/Factory -6/Garrison -5/Factory (discovered 2 exits: *Fac x2) -4/Factory -4/Garrison (discovered 3 exits: [*Fac x3]) -4/Factory (discovered 2 exits: [Upp] / *Ext) -4/Extension (discovered 2 exits: *Res / [*Cet]) -3/Research (discovered 2 exits: *Tes x2) -3/Testing -3/Garrison -2/Research -2/Garrison -2/Research -2/Garrison -1/Access -1/Garrison -1/Access To Epsilon Eridani History --------- Turn | Location | Event 17 | -11/Scrapyard | Discovered new exit (range 14) 72 | -11/Scrapyard | Entered Materials 89 | -10/Materials | Central database locked down 312 | -10/Materials | Build established: Mutant 500 | -10/Materials | Discovered new exit (range 9) 800 | -10/Materials | Build established: Scavenger-Mutant 1247 | -10/Materials | Discovered new exit (range 16) 1286 | -10/Materials | Entered Mines 1287 | -10/Mines | Assembled infested the area 1292 | -10/Mines | Assisted by a Guerilla fighting off Assembled 2049 | -10/Mines | Core integrity fell below 50% 2068 | -10/Mines | Build established: Mutant 2076 | -10/Mines | Discovered new exit (range 10) 2186 | -10/Mines | Entered Materials 2186 | -9/Materials | Accompanied by 2 allies 2186 | -9/Materials | Evolved 2 slots: Utility x2 2191 | -9/Materials | Led the pair of lost Derelicts to an unsafe place 2222 | -9/Materials | Discovered new exit (range 6) 2246 | -9/Materials | Identified exit to Storage 2249 | -9/Materials | Entered Storage 2249 | -9/Storage | Accompanied by 2 allies 2395 | -9/Storage | Identified exit to Garrison 2396 | -9/Storage | Entered Garrison 2516 | -9/Garrison | Triggered checkpoint 2527 | -9/Garrison | Build established: Scavenger-Mutant 2557 | -9/Garrison | Garrison Relay disabled 2706 | -9/Garrison | Triggered checkpoint 2982 | -9/Garrison | Discovered new exit (range 11) 3066 | -9/Garrison | Installed Relay Interface Framework 3114 | -9/Garrison | Garrison Relay disabled 3726 | -9/Garrison | Triggered checkpoint 3820 | -9/Garrison | Triggered checkpoint 4120 | -9/Garrison | Core integrity fell below 50% 4147 | -9/Garrison | Lost 4 parts (3u1w) 4150 | -9/Garrison | Expanded RIF knowledge: Patrol Navigation 4401 | -9/Garrison | Build established: Bothacker-Mutant 4429 | -9/Garrison | Discovered new exit (range 14) 4464 | -9/Garrison | Entered Recycling 5405 | -9/Recycling | Lost 3 parts (1p1u1w) 5428 | -9/Recycling | Discovered new exit (range 5) 5496 | -9/Recycling | Lost 3 allies 5555 | -9/Recycling | Scanned before Scraplab entrance 5579 | -9/Recycling | Entered Scraplab 5594 | -9/Recycling | Discovered new exit (range 3) 5622 | -9/Recycling | Entered Scraptown 5622 | -9/Scraptown | Accompanied by 10 allies 5801 | -9/Scraptown | Build established: Commander-Mutant 5809 | -9/Scraptown | Visited IN-MT5's Study 5866 | -9/Scraptown | Visited Spacefarers 5900 | -9/Scraptown | Visited Junk Repository 5971 | -9/Scraptown | Visited SPCMW 6066 | -9/Scraptown | Visited Cyclists 6118 | -9/Scraptown | Visited Assassins FH 6568 | -9/Scraptown | Discovered new exit (range 7) 7068 | -9/Scraptown | Turned away by UFD registrar 7165 | -9/Scraptown | System corruption cleaned by C-Scrubber 7221 | -9/Scraptown | Entered Factory 7221 | -6/Factory | Accompanied by 10 allies 7221 | -6/Factory | Evolved 6 slots: Propulsion x2, Utility x4 7335 | -6/Factory | Fabricated A-02 Transporter (x1) 7560 | -6/Factory | Identified exit to Garrison 7561 | -6/Factory | Entered Garrison 7576 | -6/Garrison | Lost 11 allies 7767 | -6/Garrison | Lost 8 parts (1p4n1u2w) 7957 | -6/Garrison | Triggered checkpoint 8046 | -6/Garrison | Spotted B-75 Beast 8052 | -6/Garrison | Build established: Scavenger-Mutant 8204 | -6/Garrison | Core integrity fell below 50% 8345 | -6/Garrison | Destroyed B-75 Beast 8373 | -6/Garrison | Lost 7 parts (2n2u3w) 8475 | -6/Garrison | Lost 4 parts (3n1u) 8561 | -6/Garrison | Triggered checkpoint 8630 | -6/Garrison | Garrison Relay disabled 8755 | -6/Garrison | Core integrity fell below 20% 8799 | -6/Garrison | Lost 9 parts (1p2n3u3w) 8816 | -6/Garrison | Discovered new exit (range 12) 8900 | -6/Garrison | Phase Generator disabled 8975 | -6/Garrison | Triggered checkpoint 9008 | -6/Garrison | Entered Factory 9008 | -5/Factory | Evolved 2 slots: Utility x2 9036 | -5/Factory | Discovered new exit (range 13) 9077 | -5/Factory | Build established: Bothacker-Sprinter 9162 | -5/Factory | Discovered new exit (range 12) 9170 | -5/Factory | Entered another Factory area 9170 | -4/Factory | Evolved 2 slots: Propulsion x1, Utility x1 9259 | -4/Factory | Spotted B-86 Titan 9290 | -4/Factory | Identified exit to Garrison 9290 | -4/Factory | Entered Garrison 9333 | -4/Garrison | Warlord forces raided the area 9384 | -4/Garrison | Triggered checkpoint 9416 | -4/Garrison | Garrison Relay disabled 9418 | -4/Garrison | Triggered checkpoint 9444 | -4/Garrison | Spotted B-86 Titan 9447 | -4/Garrison | Triggered checkpoint 9457 | -4/Garrison | Triggered checkpoint 9486 | -4/Garrison | Triggered checkpoint 9493 | -4/Garrison | Expanded RIF knowledge: Program Shield 9565 | -4/Garrison | Garrison Relay disabled 9696 | -4/Garrison | Triggered checkpoint 9736 | -4/Garrison | Lost 3 allies 9736 | -4/Garrison | Discovered new exit (range 13) 9779 | -4/Garrison | Rescued a captive Derelict 9786 | -4/Garrison | Rescued a captive Derelict 9802 | -4/Garrison | Garrison Relay disabled 9824 | -4/Garrison | Discovered new exit (range 13) 9838 | -4/Garrison | Triggered checkpoint 9978 | -4/Garrison | Triggered checkpoint 10278 | -4/Garrison | Build established: Bothacker-Mutant 10663 | -4/Garrison | Garrison Relay disabled 10884 | -4/Garrison | Discovered new exit (range 12) 10906 | -4/Garrison | Entered Factory 10906 | -4/Factory | Accompanied by 1 ally 11156 | -4/Factory | First assault squad dispatched 11257 | -4/Factory | Discovered new exit (range 43) 11400 | -4/Factory | Discovered new exit (range 19) 11434 | -4/Factory | Entered Extension 11434 | -4/Extension | Accompanied by 1 ally 11571 | -4/Extension | Rescued a captive Derelict 11669 | -4/Extension | Rescued a captive Derelict 11808 | -4/Extension | Repaired Imp. Heavy Treads 11993 | -4/Extension | Spotted B-86 Titan 11999 | -4/Extension | Spotted B-86 Titan 12084 | -4/Extension | Allies destroyed B-86 Titan 12095 | -4/Extension | Found Hvy. Reflective Plating 12112 | -4/Extension | Lost 6 allies 12246 | -4/Extension | Rescued a captive Derelict 12247 | -4/Extension | Rescued a captive Derelict 12642 | -4/Extension | Lost 3 allies 12719 | -4/Extension | Lost 3 allies 13039 | -4/Extension | Discovered new exit (range 10) 13042 | -4/Extension | Discovered new exit (range 6) 13099 | -4/Extension | Entered Research 13099 | -3/Research | Accompanied by 2 allies 13099 | -3/Research | Evolved 2 slots: Utility x2 13118 | -3/Research | Identified exit to Testing 13118 | -3/Research | Adv. Hacking Suite fried by hacking feedback 13478 | -3/Research | Entered Testing 13501 | -3/Testing | Lost 7 parts (1p1n5u) 13936 | -3/Testing | Identified exit to Garrison 13939 | -3/Testing | Entered Garrison 13939 | -3/Garrison | Accompanied by 1 ally 14009 | -3/Garrison | Expanded RIF knowledge: Alert ID Control 14027 | -3/Garrison | Triggered checkpoint 14106 | -3/Garrison | Garrison Relay disabled 14413 | -3/Garrison | Build established: Botlord-Mutant 15078 | -3/Garrison | System corruption reached 10% 15294 | -3/Garrison | Lost 5 parts (1p1n3u) 15409 | -3/Garrison | Triggered checkpoint 15459 | -3/Garrison | Spotted B-75 Beast 15464 | -3/Garrison | Rewired B-75 Beast 15488 | -3/Garrison | Allies destroyed B-75 Beast 15496 | -3/Garrison | Rewired B-75 Beast 15623 | -3/Garrison | Discovered new exit (range 11) 15681 | -3/Garrison | Triggered checkpoint 15692 | -3/Garrison | Build established: Bothacker-Mutant 15744 | -3/Garrison | Garrison Relay disabled 16034 | -3/Garrison | Build established: Botlord-Mutant 16124 | -3/Garrison | Spotted Executioner 16124 | -3/Garrison | Spotted Executioner 16144 | -3/Garrison | Allies destroyed Executioner 16151 | -3/Garrison | Allies destroyed Executioner 16168 | -3/Garrison | Rewired Striker 16177 | -3/Garrison | Rewired Striker 16207 | -3/Garrison | Found Prototype Device 16207 | -3/Garrison | Identified Adv. Kinecellerator 16257 | -3/Garrison | Found Prototype Processor 16257 | -3/Garrison | Identified Exp. Core Analyzer 16263 | -3/Garrison | Found Exp. Core Analyzer 16322 | -3/Garrison | Entered Research 16322 | -2/Research | Accompanied by 7 allies 16322 | -2/Research | Evolved 2 slots: Utility x1, Weapon x1 16693 | -2/Research | Identified exit to Garrison 16698 | -2/Research | Build established: Botlord-Skirmisher 16708 | -2/Research | Entered Garrison 16708 | -2/Garrison | Accompanied by 7 allies 16934 | -2/Garrison | Triggered checkpoint 16945 | -2/Garrison | Triggered checkpoint 16979 | -2/Garrison | Spotted B-90 Cyclops 17000 | -2/Garrison | Destroyed B-90 Cyclops 17227 | -2/Garrison | Build established: Botlord-Gunner 17280 | -2/Garrison | Triggered checkpoint 17442 | -2/Garrison | Spotted Executioner 17459 | -2/Garrison | Destroyed Executioner 17479 | -2/Garrison | Found Prototype Processor 17479 | -2/Garrison | Identified Exp. Targeting Computer 17550 | -2/Garrison | Rewired Striker 17659 | -2/Garrison | Discovered new exit (range 11) 17660 | -2/Garrison | Triggered checkpoint 17782 | -2/Garrison | Build established: Scavenger-Gunner 18082 | -2/Garrison | Triggered checkpoint 18213 | -2/Garrison | Garrison Relay disabled 18338 | -2/Garrison | Triggered checkpoint 18416 | -2/Garrison | Garrison Relay disabled 18748 | -2/Garrison | Build established: Botlord-Gunner 18916 | -2/Garrison | Identified exit to Research 19050 | -2/Garrison | Entered Research 19050 | -2/Research | Accompanied by 6 allies 19110 | -2/Research | Identified exit to Garrison 19533 | -2/Research | Garrison activated, responded to threat 19550 | -2/Research | First assault squad dispatched 19564 | -2/Research | Allies destroyed Striker 19704 | -2/Research | Entered Garrison 19704 | -2/Garrison | Accompanied by 1 ally 19741 | -2/Garrison | Expanded RIF knowledge: Watcher Feeds 19782 | -2/Garrison | Garrison Relay disabled 19851 | -2/Garrison | Learned Access security intel 19914 | -2/Garrison | Triggered checkpoint 19968 | -2/Garrison | Lost 3 allies 20018 | -2/Garrison | Triggered checkpoint 20125 | -2/Garrison | Discovered new exit (range 13) 20140 | -2/Garrison | Identified exit to Access 20164 | -2/Garrison | Garrison Relay disabled 20286 | -2/Garrison | Triggered checkpoint 20310 | -2/Garrison | Garrison Relay disabled 20399 | -2/Garrison | Entered Access 20399 | -1/Access | Accompanied by 3 allies 20399 | -1/Access | Evolved 2 slots: Utility x2 20496 | -1/Access | Lost 5 allies 20754 | -1/Access | Identified exit to Garrison 20764 | -1/Access | Entered Garrison 20991 | -1/Garrison | System corruption reached 10% 21016 | -1/Garrison | Lost 3 parts (2n1w) 21112 | -1/Garrison | Learned Access security intel 21142 | -1/Garrison | Triggered checkpoint 21151 | -1/Garrison | Triggered checkpoint 21200 | -1/Garrison | Discovered new exit (range 3) 21216 | -1/Garrison | Lost 3 allies 21275 | -1/Garrison | Identified exit to Access 21277 | -1/Garrison | Entered Access 21704 | -1/Access | Lost 3 parts (1p1n1w) 22058 | -1/Access | Found Prototype Launcher 22062 | -1/Access | Found Prototype Launcher 22091 | -1/Access | Identified Gui. Micro-nuke Launcher (x2) 22566 | -1/Access | Spotted B-99 Colossus 22568 | -1/Access | Spotted B-99 Colossus 22583 | -1/Access | Spotted B-99 Colossus 22634 | -1/Access | Core integrity fell below 50% 22646 | -1/Access | Discovered new exit (range 3) 22647 | -1/Access | Identified exit to Surface 22648 | *** | Escaped! Last Messages --------------- 22630_ Slug penetrates Sealed Heavy Doors. 22631_ Penetrated by Slug. 22633_ B-99 Colossus activates siege mode. 22633_ Penetrated by Slug. 22633_ Cld. Impulse Thruster destroyed. 22633_ Penetrated by Slug. 22633_ Relay Coupler [Sentry] destroyed. 22633_ Slug penetrates Main Access Shell. 22635_ ALERT: Potential suspicious activity detected, Programmers report to Access Zone 6A. 22643_ Slug penetrates Sealed Heavy Doors. 22646_ EXIT=FOUND 22646_ Cld. Impulse Thruster destroyed. 22646_ Relay Coupler [Duelist] destroyed. 22646_ Graphene Brace destroyed. 22646_ Slug penetrates Sealed Heavy Doors. 22646_ Slug penetrates Main Access Shell. 22646_ Slug penetrates Sealed Heavy Doors. 22647_ EXIT=IDENTIFIED: SURFACE Map ----- +----------------------------------------------------+ | ??????????????????????# % #?????????? | | ??????????????????????# ! ########## #?????????? | | ?????????????????????##% * ##??????# #?????????? | | ?????????????????????# [ ! #??????# #?????????? | | ?????????????????????# =!!* #??????# #?????????? | | ?????????????????????# ![%= #?????## ##??????#?? | | ?????????????????????# *== #?????# =##### #?? | | ?????????????????????# [= #?????# #?? | | ?????????????????????## #?????# #?? | | ???????????????????#### BB""##????# ########?? | | ???????????????????# BB #????## ##????????? | | ???????????????????# #?????# #?????????? | | ???????????????????# #?????# #??######## | | ???????????????????# #?????# #?? | | ???????????????????# % #?????# #? | | ???????????????????# #?????# #? | | ???????????????????# % #?????# # | | ???????????????????#""" %""""#?????# # | | ??????????????????????" % "?????????# + | | ??????????????????????""" "?????????# # | | ???????????????????#""""" """"#?????# # | | ???????????????????# % #?????# #? | | ???????????????????# """ "" #?????# #? | | ???????????????????# " %"? #?????# #??######## | | ???????????????????# " "" "??#?????# ?????????? | | ???????????????????# " "@ "????????# ????????? | | ???????????????????# " "????????# ???????? | | ???????????????????# """""" #?????# ???????? | | ???????????????????# #????? ??????? | | ???????????????????# #????? ?????? | | ???????????????????""""""""""""?????# ????? | | ????????????????????????????????????# ????? | | ????????????????????????????????????# ???? | | ????????????????????????????????????# ^ === ??? | | ????????????????????????????????????# === ?? | | ????????????????????????????????????# === ?? | | ????????????????????????????????????# ? | | ????????????????????????????????????# | | ???????????????????????????????????? ! | | ???????????????????????????????????? ########### | | ????????????????????????????????????#+#??????????? | | ????????????????????????????????????? ???????????? | | ????????????????????????????????????? ???????????? | | ????????????????????????????????????? ???????????? | | ?????????????????????????????????????????????????? | | ?????????????????????????????????????????????????? | | ?????????????????????????????????????????????????? | | ?????????????????????????????????????????????????? | | ?????????????????????????????????????????????????? | | | +----------------------------------------------------+ Best States ------------- Heat Dissipation 56 Coolant Potential 100 Energy Generation 29 Energy Capacity 850 Matter Stores 300 Matter Capacity 300 Sight Range 23 Robot Scan Range 18 Terrain Scan Density 10 Armor Coverage 1200 Resistance: TH 25 Weapon Shielding 66 Weapon Cycling 30 Phase Shifting 5 Evasion (%) 64 Targeting Accuracy 12 Melee Accuracy 8 Target Analysis 12 Core Analysis 12 Armor Integrity Analysis 40 Recoil Reduction 5 Kinecelleration 50 Offensive Hacking 24 Relay Coupler Types 6 Relay Coupler Value 229 Item Schematics ----------------- EM Shotgun | -9/Recycling | Hacked Robot Schematics ------------------ None Fabricated ------------ A-02 Transporter | x1 | -6/Factory | Preloaded Repaired ---------- Imp. Heavy Treads | 65% | -4/Extension Studied --------- None Alien Tech Used ----------------- None Achievements -------------- Analysis Probe Construction Begets Destruction Hack The Planet Hackathon Join The Dark Side Let Me Out Of Here Mindtrick Oppo Buddy Plot Armor Satisfying Tank Life Versatile You Will Be Upgraded Challenges ------------ None Game ------ Seed SingularitySurgeWartreads Manual? 0 Play Time 02:27:31 Cumulative 477.2 hours Start 2025.10.23 @ 16:40:14 End 2025.10.23 @ 20:16:28 Sessions 5 Manual Loads 0 Difficulty Rogue Special Mode None Game No. 805 Rogue 650 Adventurer 148 Explorer 7 Win Type 0 Total 24 Types 19/1/3/1/0/0/0/0/0/0 Lore% 65 Gallery% 76 Achievement% 52 Wizard Run 0 Options --------- Layout 1 ASCII 0 Keyboard 0 Movement Numpad Keybinds 0 Fullscreen 2 Font 24/Smallcaps Map View 50x40 Zoom Use 0% Tactical HUD 1 Map Filters NONE Filters NONE Steam 1 RUN: 19eabcb9-4c71-4562-8254-aa3110435a32